Workbook

Sheet 6月份
A1: 陆 丰 市 2022 年 6 月 财 政 预 算 支 出 完 成 情 况 表
A2: 2022-06-30 | O2: 单位：万元
B3: 年 初 | C3: 年度预算计划 | F3: 累计 | G3: 占年 | H3: 上年 | I3: 比上年 | J3: 比上年 | K3: 本月 | L3: 上年 | M3: 比上年 | N3: 比上年
A4: 支 出 项 目 | B4: 预 算 | F4: 完成 | G4: 预算 | H4: 同期 | I4: 同期增 | J4: 同期增 | K4: 完成 | L4: 同月 | M4: 同月增 | N4: 同月增 | O4: 备 注
B5: 数 | C5: 上年结转 | D5: 上级补助 | E5: 本级安排 | F5: 数 | G5: % | H5: 完成 | I5: 减额 | J5: (减)% | K5: 数 | L5: 完成 | M5: 减额 | N5: (减)%
A6: 201、一般公共服务支出 | B6: =C6+D6+E6 -> 61,621 | E6: 61,621.00 | F6: 42,196 | G6: =F6/B6*100 -> 68.5 | H6: 36,015 | I6: =F6-H6 -> 6,181 | J6: =I6/H6*100 -> 17.16 | K6: 6,344 | L6: 6,646 | M6: =K6-L6 -> -302 | N6: =M6/L6*100 -> -4.54
A7: 203、国防支出 | B7: =C7+D7+E7 -> 0 | H7: 123 | I7: =F7-H7 -> -123 | J7: =I7/H7*100 -> -100.00 | L7: 2 | N7: =M7/L7*100 -> 0.00
A8: 204、公共安全支出 | B8: =C8+D8+E8 -> 56,907 | E8: 56,907.00 | F8: 19,414 | G8: =F8/B8*100 -> 34.1 | H8: 29,090 | I8: =F8-H8 -> -9,676 | J8: =I8/H8*100 -> -33.26 | K8: 2,470 | L8: 5,904 | M8: =K8-L8 -> -3,434 | N8: =M8/L8*100 -> -58.16
A9: 205、教育支出 | B9: =C9+D9+E9 -> 230,306 | E9: 230,306.00 | F9: 93,107 | G9: =F9/B9*100 -> 40.4 | H9: 152,104 | I9: =F9-H9 -> -58,997 | J9: =I9/H9*100 -> -38.79 | K9: 26,055 | L9: 26,555 | M9: =K9-L9 -> -500 | N9: =M9/L9*100 -> -1.88
A10: 206、科学技术支出 | B10: =C10+D10+E10 -> 1,678 | E10: 1,678.00 | F10: 3,376 | G10: =F10/B10*100 -> 201.2 | H10: 6,352 | I10: =F10-H10 -> -2,976 | J10: =I10/H10*100 -> -46.85 | K10: 34 | L10: 2,120 | M10: =K10-L10 -> -2,086 | N10: =M10/L10*100 -> -98.40
A11: 207、文化体育与传媒支出 | B11: =C11+D11+E11 -> 19,936 | E11: 19,936.00 | F11: 2,946 | G11: =F11/B11*100 -> 14.8 | H11: 11,426 | I11: =F11-H11 -> -8,480 | J11: =I11/H11*100 -> -74.22 | K11: 361 | L11: 2,808 | M11: =K11-L11 -> -2,447 | N11: =M11/L11*100 -> -87.14
A12: 208、社会保障和就业支出 | B12: =C12+D12+E12 -> 138,253 | E12: 138,253.00 | F12: 91,888 | G12: =F12/B12*100 -> 66.5 | H12: 69,097 | I12: =F12-H12 -> 22,791 | J12: =I12/H12*100 -> 32.98 | K12: 9,889 | L12: 6,683 | M12: =K12-L12 -> 3,206 | N12: =M12/L12*100 -> 47.97
A13: 210、卫生健康支出 | B13: =C13+D13+E13 -> 142,504 | E13: 142,504.00 | F13: 105,776 | G13: =F13/B13*100 -> 74.2 | H13: 106,328 | I13: =F13-H13 -> -552 | J13: =I13/H13*100 -> -0.52 | K13: 3,965 | L13: 34,515 | M13: =K13-L13 -> -30,550 | N13: =M13/L13*100 -> -88.51
A14: 211、节能环保支出 | B14: =C14+D14+E14 -> 7,144 | E14: 7,144.00 | F14: 2,754 | G14: =F14/B14*100 -> 38.5 | H14: 2,509 | I14: =F14-H14 -> 245 | J14: =I14/H14*100 -> 9.76 | K14: 277 | L14: 513 | M14: =K14-L14 -> -236 | N14: =M14/L14*100 -> -46.00
A15: 212、城乡社区支出 | B15: =C15+D15+E15 -> 38,910 | E15: 38,910.00 | F15: 21,390 | G15: =F15/B15*100 -> 55.0 | H15: 15,416 | I15: =F15-H15 -> 5,974 | J15: =I15/H15*100 -> 38.75 | K15: 3,057 | L15: 3,459 | M15: =K15-L15 -> -402 | N15: =M15/L15*100 -> -11.62
A16: 213、农林水支出 | B16: =C16+D16+E16 -> 119,233 | E16: 119,233.00 | F16: 41,631 | G16: =F16/B16*100 -> 34.9 | H16: 69,249 | I16: =F16-H16 -> -27,618 | J16: =I16/H16*100 -> -39.88 | K16: 9,404 | L16: 16,585 | M16: =K16-L16 -> -7,181 | N16: =M16/L16*100 -> -43.30
A17: 214、交通运输支出 | B17: =C17+D17+E17 -> 16,226 | E17: 16,226.00 | F17: 56,881 | G17: =F17/B17*100 -> 350.6 | H17: 15,066 | I17: =F17-H17 -> 41,815 | J17: =I17/H17*100 -> 277.55 | K17: 14,558 | L17: 1,885 | M17: =K17-L17 -> 12,673 | N17: =M17/L17*100 -> 672.31 | O17: 其中：消化历年历年公路建设资金1.4亿元，政府债券资金支出3亿元
A18: 215、资源勘探信息等支出 | B18: =C18+D18+E18 -> 508 | E18: 508.00 | F18: 186 | G18: =F18/B18*100 -> 36.6 | H18: 341 | I18: =F18-H18 -> -155 | J18: =I18/H18*100 -> -45.45 | K18: 18 | L18: 27 | M18: =K18-L18 -> -9 | N18: =M18/L18*100 -> -33.33
A19: 216、商业服务业等支出 | B19: =C19+D19+E19 -> 1,251 | E19: 1,251.00 | F19: 800 | G19: =F19/B19*100 -> 63.9 | H19: 774 | I19: =F19-H19 -> 26 | J19: =I19/H19*100 -> 3.36 | K19: 6 | L19: 43 | M19: =K19-L19 -> -37 | N19: =M19/L19*100 -> -86.05
A20: 217、金融支出 | B20: =C20+D20+E20 -> 0 | E20: 0.00 | F20: 11,800 | I20: =F20-H20 -> 11,800 | O20: 消化历年农合改制资金挂账
A21: 220、自然资源海洋气象等支出 | B21: =C21+D21+E21 -> 4,866 | E21: 4,866.00 | F21: 2,711 | G21: =F21/B21*100 -> 55.7 | H21: 5,170 | I21: =F21-H21 -> -2,459 | J21: =I21/H21*100 -> -47.56 | K21: 769 | L21: 517 | M21: =K21-L21 -> 252 | N21: =M21/L21*100 -> 48.74
A22: 221、住房保障支出 | B22: =C22+D22+E22 -> 18,068 | E22: 18,068.00 | F22: 4,519 | G22: =F22/B22*100 -> 25.0 | H22: 5,359 | I22: =F22-H22 -> -840 | J22: =I22/H22*100 -> -15.67 | K22: 407 | L22: 924 | M22: =K22-L22 -> -517 | N22: =M22/L22*100 -> -55.95
A23: 222、粮油物资储备支出 | B23: =C23+D23+E23 -> 3,190 | E23: 3,190.00 | F23: 1,809 | G23: =F23/B23*100 -> 56.7 | H23: 613 | I23: =F23-H23 -> 1,196 | J23: =I23/H23*100 -> 195.11 | K23: 628 | M23: =K23-L23 -> 628
A24: 224、灾害防治及应急管理支出 | B24: =C24+D24+E24 -> 3,253 | E24: 3,253.00 | F24: 1,782 | G24: =F24/B24*100 -> 54.8 | H24: 1,847 | I24: =F24-H24 -> -65 | J24: =I24/H24*100 -> -3.52 | K24: 422 | L24: 315 | M24: =K24-L24 -> 107 | N24: =M24/L24*100 -> 33.97
A25: 232、债务付息支出 | B25: =C25+D25+E25 -> 2,400 | E25: 2,400.00 | F25: 583 | G25: =F25/B25*100 -> 24.3 | H25: 940 | I25: =F25-H25 -> -357 | J25: =I25/H25*100 -> -37.98 | K25: 63 | L25: 406 | M25: =K25-L25 -> -343 | N25: =M25/L25*100 -> -84.48
A26: 233、债务发行费用支出 | B26: =C26+D26+E26 -> 100 | E26: 100.00 | F26: 13 | G26: =F26/B26*100 -> 13.0
A27: 227、预备费 | B27: =C27+D27+E27 -> 2,000 | E27: 2,000.00 | G27: =F27/B27*100 -> 0.0
A28: 229、其他支出 | B28: =C28+D28+E28 -> 47,350 | E28: 47,350.00 | F28: 2,135 | G28: =F28/B28*100 -> 4.5 | H28: 1,398 | I28: =F28-H28 -> 737 | J28: =I28/H28*100 -> 52.72 | K28: 576 | L28: 347 | M28: =K28-L28 -> 229 | N28: =M28/L28*100 -> 65.99
A29: 一、一般公共预算支出合计 | B29: =SUM(B6:B28) -> 915,704 | C29: =SUM(C6:C28) -> 0 | D29: =SUM(D6:D28) -> 0 | E29: =SUM(E6:E28) -> 915,704 | F29: =SUM(F6:F28) -> 507,697 | G29: =F29/B29*100 -> 55.4 | H29: =SUM(H6:H28) -> 529,217 | I29: =F29-H29 -> -21,520 | J29: =I29/H29*100 -> -4.07 | K29: =SUM(K6:K28) -> 79,303 | L29: =SUM(L6:L28) -> 110,254 | M29: =K29-L29 -> -30,951 | N29: =M29/L29*100 -> -28.07
A30: 二、政府性基金预算支出 | B30: 351,009 | D30: 121800 | E30: 192576 | F30: 280,378 | G30: =F30/B30*100 -> 79.9 | H30: 55,170 | I30: =F30-H30 -> 225,208 | J30: =I30/H30*100 -> 408.21 | K30: 106,943 | L30: 17,014 | M30: =K30-L30 -> 89,929 | N30: =M30/L30*100 -> 528.56
A31: 三、国有资本经营支出 | B31: 1,014 | E31: 963 | F31: 489 | G31: =F31/B31*100 -> 48.2 | H31: 204 | I31: =F31-H31 -> 285 | J31: =I31/H31*100 -> 139.71 | K31: 423 | L31: 185 | M31: =K31-L31 -> 238 | N31: =M31/L31*100 -> 128.65
A32: 四、债务还本支出 | B32: 1,562 | G32: =F32/B32*100 -> 0.0 | K32: =F32-'[1]2月份'!F31 -> 0
A33: 支出合计 | B33: =B29+B30+B31+B32 -> 1,269,289 | C33: =C29+C30+C31 -> 0 | D33: =D29+D30+D31 -> 121,800 | E33: =E29+E30+E31 -> 1,109,243 | F33: =F29+F30+F31+F32 -> 788,564 | G33: =F33/B33*100 -> 62.1 | H33: =H29+H30+H31+H32 -> 584,591 | I33: =F33-H33 -> 203,973 | J33: =I33/H33*100 -> 34.89 | K33: =K29+K30+K31+K32 -> 186,669 | L33: =L29+L30+L31+L32 -> 127,453 | M33: =K33-L33 -> 59,216 | N33: =M33/L33*100 -> 46.46

Sheet Sheet1

Sheet Sheet2

Sheet Sheet3
